bitfinex-derivatives/quotes_BTCF0:USTF0_20260107
["timestamp","ask_amount","ask_price","bid_price","bid_amount"]
[1767810752116,0.00218655,91469.0,91461.0,0.010943]
[1767810752422,0.00218655,91469.0,91456.0,0.08852241]
[1767810752423,0.00218655,91469.0,91456.0,0.11619668]
[1767810752617,0.00218655,91469.0,91454.0,0.103944]
[1767810752815,0.08666906,91465.0,91449.0,0.010944]
[1767810753019,0.10505903,91462.0,91446.0,0.093]
[1767810753316,0.08666906,91458.0,91446.0,0.093]
[1767810753519,0.08666906,91456.0,91440.0,0.010945]
[1767810753712,0.10505903,91456.0,91439.0,0.010945]
[1767810753912,0.08666906,91461.0,91442.0,0.03861927]
[1767810754218,0.010943,91458.0,91439.0,0.010945]
[1767810754517,0.010943,91455.0,91437.0,0.093]
[1767810754721,0.09761206,91458.0,91438.0,0.010945]
[1767810754924,0.093,91464.0,91438.0,0.02767427]
[1767810755123,0.093,91464.0,91442.0,0.02767427]
[1767810755422,0.093,91464.0,91450.0,0.010944]
[1767810755818,0.093,91464.0,91447.0,0.010944]
[1767810756426,0.103942,91464.0,91444.0,0.010945]
[1767810756724,0.093,91464.0,91442.0,0.02767427]
[1767810756924,0.00218655,91469.0,91454.0,0.010943]
[1767810757125,0.00218655,91469.0,91457.0,0.02767427]
[1767810757324,0.00218655,91469.0,91458.0,0.010943]
[1767810757516,0.09304,91473.0,91465.0,0.010942]
[1767810757919,0.09304,91473.0,91462.0,0.03861727]
[1767810758320,0.010941,91479.0,91462.0,0.03861727]
[1767810758912,0.010941,91479.0,91457.0,0.09202997]
[1767810758913,0.08666906,91464.0,91438.0,0.02767427]
[1767810759126,0.08666906,91464.0,91448.0,0.010944]
[1767810760635,0.010943,91463.0,91448.0,0.010944]
[1767810760832,0.010943,91461.0,91445.0,0.03861927]
[1767810761221,0.08666906,91464.0,91447.0,0.010944]
[1767810761416,0.08666906,91464.0,91445.0,0.02767427]
[1767810761724,0.10661905,91464.0,91445.0,0.09304]
[1767810762125,0.010943,91463.0,91446.0,0.010945]
[1767810762436,0.010943,91461.0,91446.0,0.010945]
[1767810762629,0.010943,91459.0,91445.0,0.09304]
[1767810763030,0.010943,91458.0,91445.0,0.09304]
[1767810763334,0.010943,91461.0,91445.0,0.09304]
[1767810763525,0.010943,91461.0,91445.0,0.103985]
[1767810763926,0.010943,91459.0,91445.0,0.09304]
[1767810764226,0.09761206,91462.0,91445.0,0.09304]
[1767810764927,0.09761206,91462.0,91446.0,0.010944]
[1767810766629,0.010943,91460.0,91445.0,0.09304]
[1767810767630,0.08666906,91462.0,91446.0,0.010945]
[1767810767938,0.010943,91459.0,91445.0,0.09304]
[1767810769734,0.010943,91457.0,91445.0,0.09304]
[1767810770038,0.09304,91471.0,91439.0,0.02986153]
[1767810770039,0.08666906,91458.0,91439.0,0.02986153]
[1767810770228,0.09761206,91458.0,91442.0,0.010945]
[1767810771338,0.08666906,91458.0,91440.0,0.02767427]
[1767810771840,0.08666906,91458.0,91447.0,0.010944]
[1767810772025,0.010943,91462.0,91447.0,0.010944]
[1767810774242,0.010943,91460.0,91444.0,0.010945]
[1767810774938,0.10439063,91464.0,91442.0,0.02767427]
[1767810775141,0.08666906,91470.0,91455.0,0.010943]
[1767810775443,0.01094,91483.0,91460.0,0.010943]
[1767810775444,0.09304,91471.0,91460.0,0.010943]
[1767810775735,0.09304,91472.0,91460.0,0.010943]
[1767810775936,0.010941,91473.0,91459.0,0.010943]
[1767810776142,0.010941,91473.0,91458.0,0.02767427]
[1767810776332,0.010941,91473.0,91455.0,0.010943]
[1767810776533,0.010941,91473.0,91457.0,0.010943]
[1767810776842,0.010942,91471.0,91454.0,0.03861827]
[1767810777251,0.010942,91469.0,91454.0,0.03861727]
[1767810777433,0.010942,91469.0,91454.0,0.02767427]
[1767810777835,0.08666906,91471.0,91450.0,2.7e-07]
[1767810778040,0.08666906,91455.0,91440.0,0.09304]
[1767810778542,0.08666906,91455.0,91440.0,0.103985]
[1767810779436,0.010944,91448.0,91434.0,0.09202997]
[1767810779640,0.010944,91450.0,91434.0,0.09202997]
[1767810779835,0.010945,91447.0,91435.0,0.09304]
[1767810780036,0.08666906,91455.0,91435.0,0.09304]
[1767810780037,0.010944,91453.0,91435.0,0.09304]
[1767810780337,0.010943,91457.0,91438.0,0.03861927]
[1767810780537,0.12457782,91461.0,91438.0,0.02767427]
[1767810780843,0.08666906,91460.0,91438.0,0.02767427]
[1767810781043,0.11363482,91460.0,91438.0,0.02767427]
[1767810781236,0.08575133,91459.0,91438.0,0.02767427]
[1767810781438,0.09669433,91459.0,91442.0,0.010945]
[1767810781636,0.08575133,91457.0,91435.0,0.103986]
[1767810781839,0.11394957,91450.0,91429.0,0.02563946]
[1767810782043,0.08841526,91442.0,91429.0,0.09304]
[1767810782230,0.09936126,91437.0,91421.0,0.09304]
[1767810782436,0.08841526,91432.0,91414.0,0.010948]
[1767810782631,0.08841526,91432.0,91416.0,0.010948]
[1767810782948,0.08841526,91437.0,91420.0,0.010948]
[1767810783153,0.08841526,91437.0,91412.0,0.08795004]
[1767810783154,0.08841526,91437.0,91415.0,0.03658746]
[1767810783442,0.08841526,91437.0,91415.0,0.02563946]
[1767810785235,0.08841526,91437.0,91421.0,0.010947]
[1767810786239,0.010946,91433.0,91417.0,0.010948]
[1767810786435,0.08841526,91436.0,91415.0,0.02563946]
[1767810786638,0.08841526,91436.0,91422.0,0.010947]
[1767810787054,0.08841526,91436.0,91415.0,0.02563946]
[1767810787241,0.08841526,91435.0,91415.0,0.02563946]
[1767810787550,0.08841526,91435.0,91417.0,0.010948]
[1767810787738,0.010946,91433.0,91417.0,0.010948]
[1767810788144,0.08841526,91435.0,91419.0,0.010948]
[1767810788433,0.08841526,91435.0,91418.0,0.02563946]
[1767810788748,0.08841526,91435.0,91421.0,0.010947]
[1767810788948,0.010946,91433.0,91418.0,0.03658746]
[1767810789248,0.08841526,91433.0,91420.0,0.010948]
[1767810789449,0.08841526,91433.0,91422.0,0.010947]
[1767810789640,0.08841526,91433.0,91424.0,0.010947]
[1767810790052,0.08841526,91432.0,91417.0,0.010948]
[1767810790443,0.08841526,91432.0,91420.0,0.010948]
[1767810790750,0.08841526,91432.0,91412.0,0.02563946]
[1767810790953,0.08841526,91432.0,91422.0,0.010947]
[1767810791159,0.010946,91435.0,91419.0,0.010948]
[1767810791456,0.08841526,91432.0,91419.0,0.010948]
[1767810792047,0.08841526,91432.0,91421.0,0.010947]
[1767810792254,0.08841526,91432.0,91423.0,0.010947]
[1767810792456,0.02553431,91437.0,91423.0,0.010947]
[1767810792655,0.11394957,91437.0,91423.0,0.010947]
[1767810792860,0.08841526,91437.0,91423.0,0.010947]
[1767810793154,0.09304,91438.0,91417.0,0.010948]
[1767810793155,0.010946,91432.0,91417.0,0.010948]
[1767810793544,0.09936126,91432.0,91417.0,0.010948]
[1767810793746,0.08841526,91432.0,91419.0,0.010948]
[1767810793949,0.09936126,91431.0,91415.0,0.010948]
[1767810794141,0.09936126,91431.0,91417.0,0.010948]
[1767810794355,0.08841526,91431.0,91417.0,0.010948]
[1767810794857,0.010946,91430.0,91417.0,0.010948]
[1767810795250,0.08841526,91431.0,91418.0,0.010948]
[1767810795647,0.010947,91430.0,91416.0,0.010948]
[1767810795956,0.08841526,91431.0,91418.0,0.010948]
[1767810796256,0.08841526,91431.0,91420.0,0.010948]
[1767810796754,0.08841526,91431.0,91413.0,0.11867946]
[1767810797056,0.08841526,91437.0,91418.0,0.02563946]
[1767810797256,0.08841526,91437.0,91425.0,0.010947]
[1767810797949,0.08841526,91437.0,91424.0,0.010947]
[1767810798167,0.08841526,91436.0,91424.0,0.010947]
[1767810799255,0.010945,91444.0,91430.0,0.010946]
[1767810799559,0.08841526,91447.0,91435.0,0.010946]
[1767810799756,0.08841526,91447.0,91427.0,0.02563946]
[1767810799955,0.09304,91451.0,91444.0,0.010945]
[1767810800151,0.09304,91451.0,91435.0,0.010946]
[1767810800349,0.09304,91456.0,91451.0,0.010944]
[1767810800552,0.02553431,91461.0,91450.0,0.010944]
[1767810800849,0.010943,91459.0,91443.0,0.010945]
[1767810801161,0.02553431,91459.0,91442.0,0.010945]
[1767810801358,0.03647731,91458.0,91442.0,0.010945]
[1767810801565,0.03647731,91458.0,91444.0,0.010945]
[1767810801860,0.12489257,91458.0,91444.0,0.010945]
[1767810802058,0.12489257,91458.0,91439.0,0.010945]
[1767810802059,0.11394957,91458.0,91439.0,0.010945]
[1767810802261,0.11394957,91458.0,91450.0,0.010944]
[1767810803654,0.02553431,91462.0,91440.0,0.02563946]
[1767810803856,0.08841526,91461.0,91451.0,0.010944]
[1767810804051,0.11394957,91461.0,91451.0,0.010944]
[1767810804451,0.11394957,91460.0,91447.0,0.010944]
[1767810804745,0.08841526,91459.0,91447.0,0.010944]
[1767810804949,0.010943,91456.0,91442.0,0.010945]
[1767810805149,0.08841526,91457.0,91437.0,0.08795004]
[1767810805950,0.02553431,91454.0,91439.0,0.010945]
[1767810806153,0.08841526,91452.0,91439.0,0.010945]
[1767810806761,0.08841526,91452.0,91441.0,0.010945]
[1767810807354,0.08841526,91452.0,91437.0,0.010945]
[1767810807556,0.09935926,91452.0,91433.0,0.11867946]
[1767810807863,0.12489357,91452.0,91433.0,0.09304]
[1767810808063,0.12489357,91452.0,91438.0,0.010945]
[1767810808563,0.11394957,91452.0,91435.0,0.010946]
[1767810808864,0.010944,91452.0,91436.0,0.02563946]
[1767810809063,0.11394957,91458.0,91436.0,0.02563946]
[1767810809268,0.12489257,91457.0,91436.0,0.02563946]
[1767810809969,0.11394957,91457.0,91445.0,0.010945]
[1767810811667,0.11394957,91457.0,91444.0,0.010945]
[1767810813569,0.11323175,91456.0,91444.0,0.010945]
[1767810813866,7.5e-07,91456.0,91437.0,0.03730213]
[1767810814069,0.09304,91474.0,91462.0,0.010943]
[1767810814257,0.01094,91488.0,91455.0,0.11136164]
[1767810814258,0.09304,91478.0,91455.0,0.11136164]
[1767810814460,0.010941,91475.0,91455.0,0.11136164]
[1767810814661,0.09304,91477.0,91455.0,0.11136164]
[1767810814858,0.4,91476.0,91438.0,0.010945]
[1767810815060,0.010942,91466.0,91450.0,0.010944]
[1767810815259,0.103982,91466.0,91450.0,0.010944]
[1767810815659,0.103982,91466.0,91440.0,0.02635613]
[1767810815660,0.09304,91466.0,91440.0,0.02635613]
[1767810815865,0.02146608,91459.0,91446.0,0.010944]
[1767810816060,0.02146608,91459.0,91447.0,0.010944]
[1767810817369,0.010943,91461.0,91447.0,0.010944]
[1767810817870,0.010943,91462.0,91448.0,0.010944]
[1767810818961,0.010942,91465.0,91444.0,0.11136164]
[1767810819174,0.010942,91465.0,91450.0,0.010944]
[1767810819375,0.010942,91465.0,91447.0,0.010944]
[1767810819673,0.0304798,91465.0,91447.0,0.010944]
[1767810819969,0.09304,91466.0,91451.0,0.11136164]
[1767810820174,0.09304,91466.0,91457.0,0.010943]
[1767810820467,0.010941,91477.0,91455.0,0.11136164]
[1767810820678,0.09304,91478.0,91455.0,0.11136164]
[1767810820970,0.03027835,91477.0,91455.0,0.11136164]
[1767810821172,0.01933735,91477.0,91462.0,0.010943]
[1767810821574,0.010941,91476.0,91462.0,0.010943]
[1767810822672,0.01933735,91477.0,91462.0,0.010943]
[1767810822977,0.01933735,91477.0,91464.0,0.010942]
[1767810823371,0.010941,91475.0,91455.0,0.11136164]
[1767810823578,0.010942,91471.0,91455.0,0.12230464]
[1767810823772,0.010942,91471.0,91457.0,0.010943]
[1767810824874,0.010941,91474.0,91457.0,0.010943]
[1767810825176,0.010941,91474.0,91459.0,0.010943]
[1767810825375,0.02958303,91477.0,91459.0,0.010943]
[1767810825769,0.01864203,91477.0,91453.0,0.11136164]
[1767810826070,0.01864203,91477.0,91463.0,0.010942]
[1767810826776,0.10515932,91477.0,91463.0,0.010942]
[1767810826961,0.01814017,91476.0,91463.0,0.010942]
[1767810827478,0.103981,91478.0,91463.0,0.010942]
[1767810827779,0.09304,91478.0,91465.0,0.010942]
[1767810828264,0.10461559,91484.0,91462.0,0.11136164]
[1767810828470,0.09304,91488.0,91471.0,0.11136164]
[1767810828670,0.09304,91488.0,91476.0,0.010941]
[1767810828870,0.09304,91488.0,91474.0,0.010941]
[1767810829365,0.09304,91488.0,91471.0,0.08500551]
[1767810829570,0.02671446,91488.0,91464.0,0.09594751]
[1767810829779,0.02671446,91487.0,91473.0,0.010941]
[1767810830171,0.01094,91483.0,91466.0,0.010942]
[1767810830374,0.01094,91481.0,91466.0,0.010942]
[1767810830675,0.02671446,91487.0,91474.0,0.010941]
[1767810831075,0.02671446,91487.0,91471.0,0.010941]
[1767810831374,0.02671446,91487.0,91466.0,0.11136164]
[1767810831970,0.01094,91483.0,91466.0,0.010942]
[1767810832172,0.01094,91483.0,91468.0,0.010942]
[1767810832480,0.01094,91480.0,91463.0,0.12230364]
[1767810832781,0.01094,91480.0,91465.0,0.010942]
[1767810833670,0.01094,91480.0,91464.0,0.12230364]
[1767810837178,0.01094,91483.0,91465.0,0.02635613]
[1767810837773,0.01094,91483.0,91465.0,0.11136164]
[1767810838082,0.02671446,91477.0,91461.0,0.09304]
[1767810838479,0.010942,91470.0,91461.0,0.09304]
[1767810839483,0.010941,91472.0,91461.0,0.09304]
[1767810840576,0.010941,91472.0,91456.0,0.12230464]
[1767810840783,0.010942,91471.0,91457.0,0.093]
[1767810841076,0.010941,91474.0,91457.0,0.093]
[1767810841873,0.010941,91472.0,91457.0,0.093]
[1767810842070,0.010941,91473.0,91459.0,0.11195907]
[1767810842277,0.010941,91473.0,91459.0,0.08638964]
[1767810842476,0.010941,91473.0,91459.0,0.11195907]
[1767810842779,0.010941,91473.0,91459.0,0.08638964]
[1767810842976,0.010941,91473.0,91460.0,0.13257707]
[1767810843172,0.010941,91476.0,91460.0,0.13257707]
[1767810843580,0.11035765,91478.0,91460.0,0.13257707]
[1767810843976,0.093,91480.0,91463.0,0.11195907]
[1767810844178,0.010941,91479.0,91465.0,0.010942]
[1767810844886,0.093,91480.0,91465.0,0.010942]
[1767810845093,0.093,91480.0,91466.0,0.010942]
[1767810845475,0.093,91480.0,91463.0,0.11195907]
[1767810845681,0.010941,91477.0,91463.0,0.11195907]
[1767810846085,0.093,91480.0,91463.0,0.11195907]
[1767810846285,0.010941,91475.0,91462.0,0.010943]
[1767810846488,0.02359606,91476.0,91457.0,0.103943]
[1767810846686,0.010942,91471.0,91457.0,0.093]
[1767810846886,0.010942,91471.0,91457.0,0.103943]
[1767810847082,0.02359606,91475.0,91460.0,0.010943]
[1767810847285,0.100579,91476.0,91460.0,0.010943]
[1767810847490,0.03370317,91479.0,91458.0,0.11195907]
[1767810847684,0.093,91480.0,91466.0,0.010942]
[1767810847879,0.010941,91479.0,91463.0,0.08638964]
[1767810848689,0.00218655,91469.0,91463.0,0.08638964]
[1767810849289,0.00218655,91469.0,91464.0,0.09733164]
[1767810850092,0.00218655,91469.0,91456.0,0.093]
[1767810850494,0.00218655,91469.0,91458.0,0.010943]
[1767810850995,0.00218655,91469.0,91456.0,0.093]
[1767810852392,0.010942,91466.0,91456.0,0.093]
[1767810852587,0.00218655,91469.0,91456.0,0.093]
[1767810852990,0.00218655,91469.0,91460.0,0.010943]
[1767810854386,0.00218655,91469.0,91458.0,0.03651243]
[1767810854587,0.00218655,91469.0,91460.0,0.11195907]
[1767810859402,0.00218655,91469.0,91456.0,0.093]
[1767810859694,0.00218655,91469.0,91457.0,0.11195907]
[1767810859891,0.010942,91468.0,91458.0,0.08638964]
[1767810860086,0.00218655,91469.0,91458.0,0.08638964]
[1767810860287,0.010942,91467.0,91458.0,0.08638964]
[1767810860492,0.00218655,91469.0,91458.0,0.08638964]
[1767810860686,0.010942,91468.0,91458.0,0.08638964]
[1767810860900,0.010942,91468.0,91458.0,0.11195907]
[1767810861199,0.010942,91468.0,91459.0,0.11195907]
[1767810861384,0.00218655,91469.0,91459.0,0.11195907]
[1767810861590,0.010942,91468.0,91459.0,0.08638964]
[1767810861788,0.010942,91466.0,91459.0,0.08638964]
[1767810862604,0.010942,91468.0,91459.0,0.08638964]
[1767810862794,0.010942,91466.0,91459.0,0.08638964]
[1767810863804,0.01312855,91469.0,91459.0,0.08638964]
[1767810864195,0.00218655,91469.0,91453.0,0.02556943]
[1767810864397,0.010942,91467.0,91454.0,0.093]
[1767810864705,0.010942,91467.0,91454.0,0.20495907]
[1767810864904,0.010942,91467.0,91456.0,0.02556943]
[1767810865203,0.010942,91467.0,91457.0,0.11195907]
[1767810865404,0.010942,91467.0,91458.0,0.02556943]
[1767810865802,0.010942,91467.0,91457.0,0.07738964]
[1767810866002,0.01312855,91469.0,91457.0,0.07738964]
[1767810866600,0.010942,91468.0,91457.0,0.07738964]
[1767810867007,0.00218655,91469.0,91451.0,0.02556943]
[1767810867206,0.010942,91464.0,91448.0,0.010944]
[1767810867398,0.010942,91464.0,91449.0,0.02556943]
[1767810867706,0.010942,91468.0,91453.0,0.010944]
[1767810868298,0.010942,91465.0,91452.0,0.02556943]
[1767810868912,0.010942,91468.0,91452.0,0.02556943]
[1767810869511,0.010942,91466.0,91452.0,0.02556943]
[1767810870212,0.010942,91467.0,91452.0,0.03651343]
[1767810870507,0.00218655,91469.0,91456.0,0.010943]
[1767810870708,0.00218655,91469.0,91454.0,0.010944]
[1767810870913,0.01312855,91469.0,91454.0,0.010944]
[1767810871115,0.010943,91463.0,91453.0,0.02556943]
[1767810871508,0.010942,91466.0,91453.0,0.02556943]
[1767810873015,0.01312855,91469.0,91454.0,0.010944]
[1767810873231,0.010942,91467.0,91453.0,0.02556943]
[1767810873408,0.010942,91468.0,91455.0,0.02221113]
[1767810873615,0.010942,91467.0,91456.0,0.02221113]
[1767810873915,0.00218655,91469.0,91456.0,0.02221113]
[1767810874116,0.00218655,91469.0,91455.0,0.08421385]
[1767810874412,0.010942,91466.0,91455.0,0.08421385]
[1767810874611,0.00218655,91469.0,91455.0,0.10642498]
[1767810874912,0.010942,91464.0,91455.0,0.10642498]
[1767810875117,0.010942,91467.0,91455.0,0.10642498]
[1767810875316,0.010942,91466.0,91455.0,0.10642498]
[1767810875707,0.010942,91467.0,91455.0,0.10642498]
[1767810876011,0.010942,91467.0,91457.0,0.02221113]
[1767810876211,0.010942,91467.0,91458.0,0.02221113]
[1767810881921,0.01312855,91469.0,91458.0,0.02221113]
[1767810882718,0.00218655,91469.0,91458.0,0.02221113]
[1767810883019,0.010942,91468.0,91458.0,0.02221113]
[1767810883410,0.00218655,91469.0,91458.0,0.02221113]
[1767810883710,0.00218655,91469.0,91458.0,0.01221113]
[1767810884510,0.010942,91467.0,91458.0,0.01221113]
[1767810884709,0.07975262,91491.0,91459.0,0.08421385]
[1767810884912,0.01094,91485.0,91471.0,0.08421385]
[1767810885115,0.010939,91489.0,91473.0,0.010941]
[1767810885313,0.01094,91488.0,91474.0,0.08421385]
[1767810885621,0.01094,91484.0,91474.0,0.08421385]
[1767810886017,0.01094,91484.0,91458.0,0.010943]
[1767810886018,0.10262006,91434.0,91424.0,8.7e-07]
[1767810886218,0.168043,91483.0,91418.0,0.09304]
[1767810886219,0.08597767,91446.0,91418.0,0.09304]
[1767810886417,0.09069662,91449.0,91419.0,0.09304]
[1767810886717,0.010944,91447.0,91411.0,0.010949]
[1767810886918,0.010944,91447.0,91419.0,0.2098]
[1767810886919,0.010946,91434.0,91419.0,0.2098]
[1767810887221,0.010946,91437.0,91419.0,0.2098]
[1767810887422,0.010946,91434.0,91419.0,0.2098]
[1767810887622,0.02286744,91447.0,91419.0,0.2098]
[1767810887819,0.010946,91431.0,91419.0,0.2098]
[1767810888020,0.02286744,91447.0,91422.0,0.10642498]
[1767810888228,0.02286744,91456.0,91437.0,0.08421385]
[1767810888423,0.08664718,91460.0,91439.0,0.08421385]
[1767810888620,0.08664718,91460.0,91428.0,0.010947]
[1767810888621,0.010944,91447.0,91441.0,0.08421385]
[1767810888818,0.010944,91452.0,91442.0,0.09304]
[1767810889021,0.02286744,91462.0,91442.0,0.09304]
[1767810889220,0.07975262,91469.0,91443.0,0.08421385]
[1767810889518,0.010944,91452.0,91443.0,0.08421385]
[1767810889718,0.010944,91448.0,91443.0,0.08421385]
[1767810889916,0.010942,91465.0,91443.0,8.5e-07]
[1767810890119,0.010944,91450.0,91443.0,8.5e-07]
[1767810890325,0.010944,91450.0,91444.0,1.3e-07]
[1767810890511,0.010944,91448.0,91444.0,1.3e-07]
[1767810891221,0.010942,91465.0,91442.0,0.09304]
[1767810891423,0.010942,91465.0,91354.0,0.174779]
[1767810891424,0.010945,91444.0,91443.0,0.09304]
[1767810892011,0.07975262,91466.0,91443.0,0.09304]
[1767810892211,0.010944,91453.0,91443.0,0.09304]
[1767810892626,0.010944,91451.0,91443.0,0.09304]
[1767810893027,0.010943,91455.0,91443.0,0.09304]
[1767810893728,0.010943,91455.0,91443.0,0.11525113]
[1767810894325,0.010944,91453.0,91443.0,0.11525113]
[1767810895030,0.010943,91456.0,91443.0,0.11525113]
[1767810895230,0.010943,91456.0,91444.0,0.10642498]
[1767810895532,0.010943,91456.0,91445.0,0.02221113]
[1767810896224,0.010943,91456.0,91443.0,0.09304]
[1767810896429,0.010944,91453.0,91443.0,0.09304]
[1767810896629,0.010944,91453.0,91443.0,0.11525113]
[1767810897128,0.02286744,91451.0,91379.0,0.0021887]
[1767810897326,0.07975262,91410.0,91379.0,0.0021887]
[1767810897518,0.07975262,91410.0,91388.0,0.010951]
[1767810897723,0.09070162,91410.0,91385.0,0.010952]
[1767810897923,0.010949,91408.0,91385.0,0.010952]
[1767810898138,0.01095,91405.0,91384.0,0.010952]
[1767810898321,0.01095,91400.0,91380.0,0.122872]
[1767810899125,0.01095,91400.0,91384.0,0.02221113]
[1767810899325,0.01095,91400.0,91387.0,0.02221113]
[1767810899628,0.07975262,91410.0,91387.0,0.02221113]
[1767810900423,0.01095,91398.0,91387.0,0.02221113]
[1767810901520,0.010949,91406.0,91389.0,0.0475446]
[1767810901731,0.01095,91402.0,91389.0,0.0365936]
[1767810901930,0.01095,91402.0,91390.0,0.03621741]
[1767810902121,0.010947,91423.0,91403.0,0.03621741]
[1767810902122,0.09081926,91423.0,91403.0,0.03621741]
[1767810902325,0.09081926,91430.0,91405.0,0.03621741]
[1767810902524,0.010948,91417.0,91405.0,0.03621741]
[1767810904224,0.09081926,91426.0,91405.0,0.03621741]
[1767810904426,0.010947,91423.0,91407.0,0.03488406]
[1767810905835,0.09081926,91426.0,91407.0,0.03488406]
[1767810906132,0.010948,91422.0,91407.0,0.03488406]
[1767810907123,0.09081926,91426.0,91407.0,0.03488406]
[1767810908636,0.09081926,91426.0,91407.0,0.03088406]
[1767810909233,0.010947,91422.0,91407.0,0.03088406]
[1767810910931,0.010947,91422.0,91404.0,0.5446]
[1767810911235,0.010947,91422.0,91405.0,0.02890783]
[1767810911636,0.010947,91422.0,91405.0,0.03985683]
[1767810911834,0.010947,91422.0,91406.0,0.02890783]
[1767810912627,0.09081926,91426.0,91406.0,0.02890783]
[1767810914027,0.010948,91419.0,91406.0,0.02890783]
[1767810916939,0.09081926,91447.0,91426.0,0.02707297]
[1767810917140,0.010945,91444.0,91428.0,0.02707297]
[1767810917327,0.010945,91440.0,91427.0,1.0292]
[1767810918335,0.010945,91439.0,91427.0,1.0292]
[1767810918538,0.09081926,91446.0,91427.0,1.0292]
[1767810919437,0.03604587,91447.0,91427.0,1.0292]
[1767810919438,0.09081926,91445.0,91427.0,1.0292]
[1767810919735,0.03604587,91444.0,91427.0,1.0292]
[1767810919943,0.010946,91436.0,91427.0,1.0292]
[1767810920438,0.09081926,91439.0,91427.0,1.0292]
[1767810920628,0.09081926,91439.0,91428.0,1.0292]
[1767810920828,0.010946,91437.0,91428.0,1.0292]
[1767810921140,0.03604587,91444.0,91428.0,1.0292]
[1767810921540,0.010946,91437.0,91428.0,1.0292]
[1767810921741,0.03604587,91444.0,91428.0,1.0292]
[1767810922439,0.010946,91434.0,91428.0,1.0292]
[1767810922629,0.03604587,91444.0,91429.0,0.93612]
[1767810922834,0.010946,91434.0,91429.0,1.0292]
[1767810923034,0.12686513,91442.0,91429.0,1.0292]
[1767810923236,0.12686513,91442.0,91421.0,0.00494687]
[1767810923439,0.12686513,91442.0,91430.0,0.93612]
[1767810924032,0.12686513,91442.0,91430.0,0.92712]
[1767810924436,0.010946,91437.0,91430.0,0.92712]
[1767810924741,0.010945,91439.0,91430.0,0.92712]
[1767810924941,0.09081926,91442.0,91430.0,0.92712]
[1767810925242,0.010945,91439.0,91430.0,0.92712]
[1767810925436,0.03604587,91446.0,91430.0,0.92712]
[1767810925747,0.12686513,91446.0,91430.0,0.92712]
[1767810926144,0.010945,91439.0,91430.0,0.92712]
[1767810926342,0.12686513,91446.0,91430.0,0.92712]
[1767810926543,0.09081926,91446.0,91430.0,0.92712]
[1767810926845,0.12686513,91446.0,91430.0,0.245412]
[1767810927140,0.12686513,91444.0,91431.0,0.93088]
[1767810927345,0.010944,91449.0,91431.0,0.93088]
[1767810927346,0.010946,91437.0,91432.0,0.09308]
[1767810927551,0.12686513,91445.0,91432.0,0.09308]
[1767810927933,0.010945,91439.0,91432.0,0.09308]
[1767810928235,0.12686513,91445.0,91432.0,0.09308]
[1767810929344,0.010945,91439.0,91432.0,0.09308]
[1767810929534,0.12686513,91445.0,91432.0,0.09308]
[1767810929733,0.010945,91439.0,91432.0,0.09308]
[1767810929936,0.12686513,91444.0,91432.0,0.09308]
[1767810930129,0.09081926,91443.0,91433.0,0.09308]
[1767810930335,0.010945,91441.0,91433.0,0.09308]
[1767810931136,0.03604587,91448.0,91433.0,0.09308]
[1767810931137,0.010945,91439.0,91433.0,0.09308]
[1767810931534,0.010946,91438.0,91433.0,0.09308]
[1767810931936,0.010946,91438.0,91433.0,0.06208]
[1767810932148,0.09760354,91438.0,91417.0,0.05773141]
[1767810932446,0.010944,91448.0,91403.0,0.01095]
[1767810932447,0.010946,91436.0,91421.0,0.15105965]
[1767810932645,0.010945,91439.0,91423.0,0.05773141]
[1767810932847,0.010946,91437.0,91423.0,0.05773141]
[1767810933450,0.010945,91443.0,91426.0,0.06867841]
[1767810933743,0.010941,91474.0,91447.0,0.05773141]
[1767810933945,0.010944,91454.0,91448.0,0.98322668]
[1767810934132,0.010943,91456.0,91449.0,0.06223728]
[1767810934337,0.09760354,91459.0,91449.0,0.06223728]
[1767810934746,0.09760354,91459.0,91449.0,2.8e-07]
[1767810934945,0.010944,91451.0,91443.0,0.477991]
[1767810935140,0.010945,91447.0,91444.0,0.09308]
[1767810935846,0.010944,91449.0,91444.0,0.09308]
[1767810936049,0.010944,91452.0,91444.0,0.09308]
[1767810936233,0.010944,91453.0,91444.0,0.09308]
[1767810937038,0.10854654,91456.0,91444.0,0.09308]
[1767810937240,0.09760354,91463.0,91444.0,0.104025]
[1767810937441,0.06003126,91463.0,91388.0,0.010951]
[1767810937633,0.09760354,91419.0,91389.0,0.0936]
[1767810937845,0.09760354,91419.0,91390.0,0.49631413]
[1767810938143,0.09760354,91419.0,91391.0,0.09304]
[1767810938348,0.010948,91417.0,91400.0,0.13271413]
[1767810938640,0.09760354,91426.0,91401.0,0.09304]
[1767810938846,0.010949,91413.0,91401.0,0.09304]
[1767810939338,0.13271413,91420.0,91392.0,0.010951]
[1767810939540,0.13271413,91420.0,91403.0,0.05773141]
[1767810939847,0.010949,91409.0,91405.0,0.05773141]
[1767810940044,0.010948,91418.0,91406.0,0.09304]
[1767810940246,0.010948,91417.0,91407.0,0.09304]
[1767810940450,0.010949,91409.0,91408.0,0.80664]
[1767810940644,0.010944,91454.0,91408.0,1.02916]
[1767810940836,0.13271413,91420.0,91409.0,0.09308]
[1767810941146,0.010948,91414.0,91409.0,0.09308]
[1767810941347,0.010949,91408.0,91390.0,0.13271413]
[1767810941545,0.010949,91408.0,91391.0,0.92308]
[1767810941748,0.010949,91410.0,91391.0,0.92308]
[1767810942247,0.13271413,91401.0,91392.0,0.09308]
[1767810942452,0.01095,91400.0,91393.0,0.09308]
[1767810942647,0.09760354,91409.0,91394.0,0.09308]
[1767810942839,0.09760354,91409.0,91390.0,0.05773141]
[1767810942840,0.01095,91402.0,91390.0,0.05773141]
[1767810943041,0.01095,91402.0,91392.0,0.05773141]
[1767810943952,0.01095,91400.0,91392.0,0.05773141]
[1767810944250,0.01095,91403.0,91392.0,0.05773141]
[1767810945351,0.01095,91402.0,91392.0,0.05773141]
[1767810945546,0.01095,91402.0,91393.0,0.93616]
[1767810945753,0.01095,91403.0,91394.0,0.09308]
[1767810946547,0.01095,91404.0,91394.0,0.09308]
[1767810946749,0.09760354,91409.0,91394.0,0.09308]
[1767810947355,0.010949,91406.0,91394.0,0.09308]